bitfinex-derivatives/quotes_SOLF0:USTF0_20250819
["timestamp","ask_amount","ask_price","bid_price","bid_amount"]
[1755566194965,2.9,185.22,185.16,5.43485552]
[1755566195759,2.9,185.22,185.16,0.03685552]
[1755566196851,499.66,185.24,185.17,3.7679199]
[1755566197258,136.6,185.24,185.17,3.7679199]
[1755566197454,136.6,185.24,185.18,3.09]
[1755566198559,136.6,185.24,185.19,5.397]
[1755566198757,2.9,185.23,185.17,3.7679199]
[1755566199653,136.6,185.24,185.17,3.7679199]
[1755566200155,136.6,185.24,185.18,5.3974]
[1755566200768,136.6,185.24,185.22,3.09]
[1755566200969,136.6,185.24,185.2,3.7679199]
[1755566201162,136.6,185.24,185.21,3.09]
[1755566201761,2.9,185.23,185.2,3.80467283]
[1755566202062,2.9,185.22,185.2,0.03675293]
[1755566202263,136.6,185.24,185.2,0.03675293]
[1755566202264,2.9,185.21,185.2,0.03675293]
[1755566207474,136.6,185.24,185.2,0.03675293]
[1755566207675,139.5,185.24,185.2,0.03675293]
[1755566207871,2.9,185.24,185.2,0.03675293]
[1755566208175,16.19,185.33,185.2,0.03675293]
[1755566208176,2.9,185.28,185.21,3.09]
[1755566208963,2.9,185.27,185.23,0.03790435]
[1755566209373,2.9,185.26,185.23,0.03790435]
[1755566209579,2.9,185.28,185.23,0.03790435]
[1755566209978,136.5,185.29,185.23,0.03790435]
[1755566210176,2.9,185.25,185.23,0.03790435]
[1755566210368,2.9,185.24,185.13,3.09]
[1755566210675,2.9,185.24,185.16,5.3979]
[1755566210876,2.9,185.24,185.17,6.8579199]
[1755566211076,136.48,185.28,185.17,6.8579199]
[1755566211479,136.48,185.28,185.18,5.3975]
[1755566211680,0.03645542,185.24,185.2,3.09]
[1755566211876,0.03645542,185.24,185.21,3.09]
[1755566213375,0.03645542,185.24,185.17,6.6979199]
[1755566213875,3.05,185.23,185.14,6.6979199]
[1755566214574,0.04133587,185.2,185.14,2.93]
[1755566215369,0.04133587,185.2,185.11,3.7679199]
[1755566215370,3.09133587,185.2,185.11,3.7679199]
[1755566215572,3.05,185.18,185.15,0.04077465]
[1755566215781,3.05,185.17,185.15,0.04077465]
[1755566216182,3.05,185.19,185.15,0.04077465]
[1755566216376,0.04133587,185.2,185.17,2.93]
[1755566217482,0.04133587,185.2,185.18,2.93]
[1755566217982,0.04133587,185.2,185.15,0.04077465]
[1755566218479,0.04133587,185.2,185.16,2.93]
[1755566219279,3.09133587,185.2,185.16,2.93]
[1755566220173,3.05,185.19,185.15,0.04077465]
[1755566220580,139.49,185.19,185.07,2.93]
[1755566220874,3.05,185.18,185.07,2.93]
[1755566221383,3.05,185.17,185.04,2.93]
[1755566221883,0.03752272,185.12,185.04,2.93]
[1755566222276,0.03752272,185.12,185.07,2.93]
[1755566222476,0.03752272,185.12,185.06,6.6979199]
[1755566222681,3.05,185.14,185.06,6.6979199]
[1755566223080,0.04151578,185.11,185.06,3.7679199]
[1755566223281,0.04151578,185.11,185.06,9.1689199]
[1755566223492,0.04151578,185.11,185.1,2.93]
[1755566223988,362.82,185.21,185.1,2.93]
[1755566224175,3.05,185.22,185.15,3.7679199]
[1755566224583,136.44,185.24,185.15,3.7679199]
[1755566224779,3.05,185.26,185.18,3.7679199]
[1755566225088,0.04059286,185.21,185.18,6.6979199]
[1755566225280,0.04059286,185.21,185.18,3.7679199]
[1755566225485,0.04059286,185.21,185.2,2.93]
[1755566227783,362.82,185.31,185.2,2.93]
[1755566227784,3.05,185.3,185.2,2.93]
[1755566227985,3.05,185.3,185.2,9.1023452]
[1755566228179,3.05,185.3,185.23,5.3961]
[1755566228384,3.05,185.3,185.21,2.93]
[1755566229181,3.05,185.3,185.24,0.04067695]
[1755566231294,3.05,185.28,185.24,0.04067695]
[1755566231488,3.05,185.25,185.24,0.04067695]
[1755566231789,3.05,185.25,185.15,2.93]
[1755566232693,3.05,185.25,185.11,2.93]
[1755566232886,136.42,185.27,185.11,2.93]
[1755566232887,0.03555449,185.22,185.11,2.93]
[1755566233088,3.05,185.21,185.11,2.93]
[1755566233288,3.05,185.2,185.11,2.93]
[1755566233587,3.05,185.34,185.2,2.93]
[1755566233788,3.05,185.32,185.2,2.93]
[1755566233984,3.05,185.3,185.2,2.93]
[1755566234191,0.0373397,185.29,185.2,2.93]
[1755566235294,3.05,185.28,185.16,2.93]
[1755566235499,3.05,185.26,185.16,2.93]
[1755566236094,0.03676405,185.23,185.16,2.93]
[1755566237096,3.05,185.3,185.2,2.93]
[1755566237497,3.05,185.3,185.2,8.3269]
[1755566237697,3.05,185.3,185.2,2.93]
[1755566238309,3.05,185.3,185.23,0.04091496]
[1755566239998,3.05,185.3,185.23,2.97091496]
[1755566240203,136.56,185.33,185.23,9.14326016]
[1755566240498,3.05,185.32,185.23,9.14326016]
[1755566244594,136.56,185.33,185.24,2.84]
[1755566245204,139.42,185.33,185.24,2.84]
[1755566253415,2.86,185.32,185.23,0.04091496]
[1755566253909,3.79957557,185.3,185.23,0.04091496]
[1755566254113,2.86,185.29,185.23,0.04091496]
[1755566254310,3.76376304,185.28,185.14,2.84]
[1755566254508,2.86,185.27,185.13,3.76376304]
[1755566254707,2.86,185.26,185.13,3.76376304]
[1755566254902,2.86,185.24,185.13,3.76376304]
[1755566255612,0.04053207,185.2,185.13,3.76376304]
[1755566256108,2.86,185.19,185.1,2.84]
[1755566256308,2.86,185.19,185.06,2.84]
[1755566257006,0.0371768,185.14,185.06,2.84]
[1755566258601,0.0371768,185.14,185.08,2.84]
[1755566259005,2.86,185.2,185.08,2.84]
[1755566259210,0.04125402,185.13,185.08,2.84]
[1755566259812,0.04125402,185.13,185.1,5.3999]
[1755566260012,0.04125402,185.13,185.12,2.84]
[1755566261326,0.04125402,185.13,185.07,9.02089576]
[1755566261811,0.04125402,185.13,185.1,5.3998]
[1755566262018,0.04125402,185.13,185.12,2.84]
[1755566262214,0.04125402,185.13,185.09,2.84]
[1755566262414,0.04125402,185.13,185.12,2.84]
[1755566263324,2.86,185.21,185.13,2.84]
[1755566264621,2.86,185.21,185.15,0.03503183]
[1755566264819,2.86,185.27,185.15,6.21592759]
[1755566265116,2.86,185.27,185.15,6.18089576]
[1755566265518,2.86,185.27,185.19,0.03874525]
[1755566268410,4.06854947,185.26,185.19,0.03874525]
[1755566268611,2.86,185.24,185.09,2.84]
[1755566268810,2.86,185.22,185.09,2.84]
[1755566269020,2.86,185.2,185.05,2.84]
[1755566269413,2.86,185.2,185.05,8.2411]
[1755566269919,0.03495377,185.14,185.05,8.2411]
[1755566270119,0.03495377,185.14,185.06,2.84]
[1755566272126,2.89495377,185.14,185.06,2.84]
[1755566272521,2.89495377,185.14,185.02,2.87]
[1755566272914,2.86,185.14,185.02,2.87]
[1755566273115,0.04058731,185.1,185.02,2.87]
[1755566275014,2.99,185.09,185.0,100.18573415]
[1755566275818,2.99,185.09,185.0,103.05573415]
[1755566276924,2.99,185.09,185.01,2.87]
[1755566279530,0.04058731,185.1,185.01,2.87]
[1755566279820,0.04058731,185.1,185.01,8.2724]
[1755566280027,0.04058731,185.1,185.01,2.87]
[1755566280424,3.03058731,185.1,185.01,2.87]
[1755566281028,3.03058731,185.1,185.01,8.2724]
[1755566281532,3.03058731,185.1,185.01,2.87]
[1755566282525,3.03058731,185.1,185.01,8.2724]
[1755566282922,3.03058731,185.1,185.01,2.87]
[1755566284033,3.03058731,185.1,185.02,5.4021]
[1755566284230,3.03058731,185.1,185.03,2.87]
[1755566284832,3.03058731,185.1,185.0,103.05573415]
[1755566285532,3.03058731,185.1,185.0,108.45853415]
[1755566285732,3.03058731,185.1,185.0,103.05573415]
[1755566287029,3.03058731,185.1,185.0,2.87]
[1755566287230,3.03058731,185.1,184.97,2.87]
[1755566287645,2.99,185.1,184.97,2.87]
[1755566287840,0.03708551,185.05,184.97,2.87]
[1755566288039,3.02708551,185.05,184.97,2.87]
[1755566288844,0.03708551,185.05,184.97,2.87]
[1755566289539,0.03708551,185.05,184.97,8.2736]
[1755566289944,2.99,185.04,184.97,2.87]
[1755566290138,2.99,185.04,184.93,2.87]
[1755566290337,2.99,185.04,184.96,3.77066162]
[1755566290644,2.99,185.04,184.99,3.77066162]
[1755566290845,0.03428133,185.02,185.01,2.87]
[1755566291244,2.99,185.08,185.01,2.87]
[1755566291640,0.03640313,185.03,185.01,2.87]
[1755566295046,0.03640313,185.03,184.99,6.64066162]
[1755566295345,0.03640313,185.03,184.99,3.77066162]
[1755566295552,2.99,185.08,185.02,6.64066162]
[1755566297545,2.99,185.08,185.03,0.03815322]
[1755566297748,2.99,185.08,185.03,2.90815322]
[1755566298052,2.99,185.07,185.03,2.90815322]
[1755566298248,2.99,185.14,185.03,0.03815322]
[1755566298448,2.99,185.12,185.02,3.77066162]
[1755566298957,2.99,185.12,185.05,0.03617776]
[1755566299154,2.99,185.11,185.05,0.03617776]
[1755566299364,2.67188382,185.1,185.05,0.03617776]
[1755566299656,2.99,185.09,185.05,0.03617776]
[1755566299852,2.99,185.11,185.05,0.03617776]
[1755566300152,3.77066162,185.12,185.05,0.03617776]
[1755566300153,2.99,185.09,185.05,0.03617776]
[1755566300453,2.99,185.07,185.05,0.03617776]
[1755566300652,2.99,185.06,185.05,0.03617776]
[1755566301854,2.99,185.09,185.05,0.03617776]
[1755566302053,2.99,185.08,185.05,0.03617776]
[1755566302756,2.99,185.12,185.05,3.16617776]
[1755566303650,2.99,185.12,185.05,0.03617776]
[1755566303854,4.08667286,185.11,185.05,0.03617776]
[1755566304053,2.99,185.08,185.05,0.03617776]
[1755566304250,2.99,185.07,185.05,0.03617776]
[1755566304752,2.99,185.06,185.05,0.03617776]
[1755566305153,2.99,185.06,184.97,3.13]
[1755566307648,2.99,185.06,184.97,9.31768504]
[1755566307853,0.04155267,185.07,184.97,9.31768504]
[1755566307854,0.04155267,185.07,184.98,3.13]
[1755566309052,0.04155267,185.07,185.0,3.13]
[1755566310264,3.03155267,185.07,185.0,3.13]
[1755566310657,0.04155267,185.07,185.0,3.13]
[1755566317766,0.04155267,185.07,185.03,3.13]
[1755566317968,2.99,185.12,185.04,3.13]
[1755566318666,4.11017683,185.11,185.04,3.13]
[1755566318859,2.99,185.12,185.04,3.13]
[1755566319067,2.99,185.1,185.01,10.51012702]
[1755566319363,2.99,185.1,185.06,3.16649958]
[1755566319567,2.99,185.14,185.06,0.03649958]
[1755566319769,2.99,185.12,185.06,0.03649958]
[1755566319964,2.99,185.1,185.06,0.03649958]
[1755566320160,363.04,185.15,185.06,0.03649958]
[1755566320366,2.99,185.13,185.06,0.03649958]
[1755566320564,6.7983354,185.12,185.06,0.03649958]
[1755566320764,4.11044675,185.11,185.06,0.03649958]
[1755566320966,2.99,185.1,185.06,0.03649958]
[1755566321165,2.99,185.14,185.06,3.16649958]
[1755566321369,6.79742598,185.13,185.06,3.16649958]
[1755566321561,2.99,185.11,185.06,0.03649958]
[1755566321767,2.99,185.14,185.06,0.03649958]
[1755566321962,2.99,185.12,185.06,0.03649958]
[1755566322160,2.99,185.1,185.06,0.03649958]
[1755566322373,2.99,185.08,185.06,0.03649958]
[1755566322564,2.99,185.07,185.06,0.03649958]
[1755566322871,2.99,185.07,184.99,7.45244198]
[1755566322872,2.99,185.07,184.99,3.13]
[1755566323069,2.99,185.05,184.99,3.13]
[1755566323266,2.99,185.05,184.96,7.45244198]
[1755566323666,2.99,185.05,184.97,3.13]
[1755566323868,2.99,185.05,184.97,7.45244198]
[1755566324764,2.99,185.05,184.97,3.13]
[1755566326375,2.99,185.05,184.95,4.32244198]
[1755566327172,2.99,185.03,184.94,7.45244198]
[1755566327474,2.99,185.03,184.94,3.13]
[1755566328172,2.99,185.03,184.93,4.32244198]
[1755566328381,2.99,185.03,184.92,4.32244198]
[1755566328676,2.99,185.03,184.93,3.13]
[1755566329671,4.14752167,185.02,184.93,3.13]
[1755566329875,7.13752167,185.01,184.91,3.13]
[1755566330074,4.14752167,185.0,184.91,3.13]
[1755566330276,2.99,185.01,184.91,3.13]
[1755566330877,2.99,185.01,184.91,7.45244198]
[1755566331073,136.38,185.08,184.92,3.13]
[1755566331275,2.99,185.04,184.93,3.13]
[1755566331473,2.99,185.02,184.93,3.13]
[1755566331775,2.99,185.0,184.89,7.45244198]
[1755566331982,2.99,185.0,184.89,3.13]
[1755566332478,4.15968632,184.99,184.89,3.13]
[1755566332683,3.12,184.98,184.89,3.13]
[1755566333387,3.12,184.98,184.86,3.08]
[1755566333581,3.12,184.97,184.86,3.08]
[1755566342895,4.14288668,184.96,184.83,3.08]
[1755566343082,0.03709126,184.93,184.83,3.08]
[1755566343281,3.12,184.92,184.83,3.08]
[1755566345788,3.12,184.92,184.79,3.08]
[1755566346293,3.12,184.92,184.81,3.08]
[1755566346486,0.04056392,184.87,184.81,3.08]
[1755566347189,0.04056392,184.87,184.81,5.4083]
[1755566347388,0.04056392,184.87,184.77,6.1907278]
[1755566347595,0.04056392,184.87,184.78,3.08]
[1755566347791,0.04056392,184.87,184.81,5.4081]
[1755566347992,0.04056392,184.87,184.82,3.08]
[1755566348397,0.04056392,184.87,184.84,3.08]
[1755566348697,0.04056392,184.87,184.85,3.08]
[1755566348996,3.12,184.92,184.85,3.08]
[1755566349193,0.04065377,184.88,184.83,3.7757205]
[1755566349396,0.04065377,184.88,184.86,3.08]
[1755566349995,0.04065377,184.88,184.84,3.08]
[1755566350196,3.16065377,184.88,184.84,3.08]
[1755566350397,3.12,184.87,184.84,3.08]
[1755566350692,3.16065377,184.88,184.81,3.7757205]
[1755566350998,3.16065377,184.88,184.8,3.08]
[1755566352886,3.16065377,184.88,184.75,3.7757205]
[1755566353091,3.16065377,184.88,184.75,6.8557205]
[1755566353292,3.12,184.88,184.75,6.8557205]
[1755566353800,0.03636065,184.83,184.76,3.08]
[1755566354392,0.03636065,184.83,184.78,3.7757205]
[1755566354593,0.03636065,184.83,184.8,3.08]
[1755566354793,0.03636065,184.83,184.82,3.08]
[1755566358097,3.12,184.91,184.82,3.08]
[1755566358303,3.12,184.91,184.85,6.8557205]
[1755566358804,136.36,184.92,184.89,3.08]
[1755566359100,139.48,184.92,184.88,6.8557205]
[1755566359297,136.36,184.92,184.89,3.11595164]
[1755566359490,139.48,184.92,184.89,0.03595164]
[1755566360497,3.12,184.91,184.89,0.03595164]
[1755566360797,136.36,184.92,184.89,3.11595164]
[1755566361203,136.36,184.92,184.9,3.08]
[1755566361403,3.12,184.95,184.9,3.08]
[1755566361607,3.12,184.94,184.9,3.08]
[1755566362299,3.12,184.94,184.9,3.11943884]
[1755566362802,3.07,184.97,184.91,2.84]
[1755566362997,3.07,184.97,184.9,0.03943884]
[1755566368206,4.28966735,184.96,184.9,0.03943884]
[1755566368407,3.07,184.97,184.9,0.03943884]
[1755566368594,4.28966735,184.96,184.9,0.03943884]
[1755566368800,3.07,184.97,184.9,0.03943884]
[1755566370209,3.07,184.97,184.9,2.87943884]
[1755566371404,3.07,185.0,184.91,3.7757205]
[1755566371611,3.07,184.98,184.9,0.03943884]
[1755566371907,3.07,184.96,184.9,0.03943884]
[1755566372111,4.29583013,184.95,184.86,3.7757205]
[1755566372302,4.29583013,184.95,184.91,0.03997856]
[1755566372809,136.24,184.99,184.91,0.03997856]
[1755566372810,3.07,184.92,184.91,0.03997856]
[1755566373210,3.07,184.97,184.91,0.03997856]
[1755566373512,4.30015772,184.96,184.91,0.03997856]
[1755566373700,4.30015772,184.95,184.91,0.03997856]
[1755566374010,3.07,184.93,184.91,0.03997856]
[1755566374212,3.07,184.92,184.91,0.03997856]
[1755566374712,3.07,184.92,184.83,2.84]
[1755566376008,136.22,184.91,184.8,11.00240972]
[1755566376209,3.07,184.88,184.77,2.84]
[1755566376506,3.07,184.86,184.74,4.38668922]
[1755566376707,3.07,184.86,184.73,3.7757205]
[1755566376708,3.07,184.82,184.7,4.38668922]
[1755566376911,3.07,184.79,184.69,6.6157205]
[1755566377103,3.07,184.79,184.7,2.84]
[1755566377306,0.03744295,184.76,184.7,2.84]
[1755566378110,0.03744295,184.76,184.71,2.84]
[1755566378303,0.03744295,184.76,184.7,2.84]
[1755566378304,3.10744295,184.76,184.7,2.84]
[1755566378507,3.10744295,184.76,184.66,6.6157205]
[1755566378708,3.07,184.76,184.66,6.6157205]
[1755566379011,0.03741358,184.73,184.66,6.6157205]
[1755566379310,3.07,184.72,184.64,2.84]
[1755566380510,3.07,184.72,184.61,2.84]
[1755566381313,0.03847063,184.68,184.61,2.84]
[1755566382414,0.03847063,184.68,184.56,4.38668922]
[1755566382616,0.03847063,184.68,184.6,6.21124991]
[1755566382814,3.07,184.71,184.61,2.84]
[1755566383221,0.04114725,184.66,184.62,2.84]
[1755566383716,0.04114725,184.66,184.57,2.84]
[1755566385323,0.04114725,184.66,184.6,8.2543]
[1755566385619,0.04114725,184.66,184.6,2.84]
[1755566385921,0.04114725,184.66,184.63,2.84]
[1755566386118,0.04114725,184.66,184.59,2.84]
[1755566386522,6.21124991,184.79,184.58,5.415]
[1755566386523,3.07,184.68,184.58,5.415]
[1755566386721,3.07,184.68,184.59,2.84]
[1755566387015,0.03649125,184.64,184.6,2.84]
[1755566387219,0.03649125,184.64,184.61,2.84]
[1755566387416,0.03649125,184.64,184.57,2.84]
[1755566388222,0.03649125,184.64,184.61,5.4141]
[1755566388523,0.03649125,184.64,184.63,2.84]
[1755566391619,0.03649125,184.64,184.6,5.4144]
[1755566391818,0.03649125,184.64,184.57,2.84]
[1755566392926,0.03649125,184.64,184.58,5.4148]
[1755566393324,0.03649125,184.64,184.57,2.84]
[1755566393522,0.03649125,184.64,184.57,8.2553]
[1755566393727,0.03649125,184.64,184.57,2.84]
[1755566395323,2.92,184.63,184.54,6.21124991]
[1755566395623,2.92,184.63,184.52,5.4168]
[1755566396023,0.04112948,184.59,184.51,2.94]
[1755566396224,0.04112948,184.59,184.53,2.94]
[1755566396225,2.96112948,184.59,184.53,2.94]
[1755566396628,2.92,184.59,184.53,2.94]
[1755566396821,2.92,184.68,184.53,2.94]
[1755566397023,0.04045766,184.58,184.54,2.94]
[1755566397235,0.04045766,184.58,184.52,6.21124991]
[1755566397427,2.92,184.64,184.54,2.94]
[1755566397628,2.92,184.64,184.49,6.21124991]
[1755566397832,2.92,184.56,184.48,2.94]
[1755566398029,0.03763339,184.57,184.5,2.94]
[1755566398224,2.92,184.6,184.5,2.94]
[1755566398626,0.04015608,184.55,184.49,6.21124991]
[1755566399033,0.04015608,184.55,184.52,2.94]
[1755566399330,0.04015608,184.55,184.51,2.94]
[1755566399525,0.04015608,184.55,184.49,6.21124991]
[1755566399720,0.04015608,184.55,184.52,2.94]
[1755566400231,0.04015608,184.55,184.48,2.94]
[1755566400432,0.04015608,184.55,184.49,6.21124991]
[1755566400632,0.04015608,184.55,184.54,2.94]
[1755566400834,2.92,184.61,184.54,2.94]
[1755566401225,0.03881281,184.56,184.51,2.94]
[1755566401540,0.03881281,184.56,184.54,2.94]
[1755566401826,2.92,184.61,184.55,2.94]
[1755566402230,2.92,184.61,184.53,5.45510152]
[1755566402434,2.92,184.61,184.54,6.72754354]
[1755566402729,2.92,184.65,184.57,3.78754354]
[1755566403123,127.78754354,184.75,184.6,3.78754354]
[1755566403433,4.26441749,184.74,184.6,3.78754354]
[1755566403624,2.92,184.71,184.59,0.03932842]
[1755566403826,2.92,184.71,184.58,3.78754354]
[1755566404021,2.92,184.71,184.63,0.03723338]
[1755566406526,2.92,184.71,184.63,2.97723338]
[1755566406730,2.92,184.71,184.65,5.413]
[1755566407031,2.92,184.71,184.63,2.97723338]
[1755566407226,2.92,184.71,184.64,5.4131]
[1755566407640,2.92,184.71,184.63,2.97723338]
[1755566408335,2.92,184.75,184.65,5.4129]
[1755566408728,2.92,184.75,184.65,2.94]
[1755566409040,2.92,184.75,184.68,0.03749185]
[1755566413743,2.92,184.75,184.68,2.97749185]
[1755566414145,2.92,184.75,184.68,0.03749185]
[1755566414639,2.92,184.75,184.68,2.97749185]
[1755566414842,2.92,184.75,184.68,0.03749185]
[1755566418146,4.30439294,184.74,184.68,0.03749185]
[1755566418443,2.92,184.72,184.68,0.03749185]
[1755566419851,366.62,184.76,184.68,2.97749185]
[1755566420150,6.98819823,184.75,184.68,2.97749185]
[1755566420453,4.31158974,184.74,184.68,2.97749185]
[1755566420660,4.31158974,184.73,184.68,2.97749185]
[1755566420857,4.31158974,184.72,184.69,2.94]
[1755566421152,363.7,184.76,184.68,0.03749185]
[1755566421153,7.24413328,184.71,184.68,0.03749185]
[1755566421364,7.24413328,184.7,184.68,0.03749185]
[1755566421653,4.31870305,184.69,184.68,0.03749185]
[1755566425758,4.32275899,184.69,184.68,0.03749185]
[1755566426257,3.1,184.74,184.68,0.03749185]
[1755566426451,7.00630497,184.73,184.68,0.03749185]
[1755566426650,4.32268222,184.72,184.68,0.03749185]
[1755566426854,4.32268222,184.71,184.68,0.03749185]
[1755566427046,4.32262494,184.7,184.68,0.03749185]
[1755566427251,3.1,184.75,184.68,3.13749185]
[1755566427559,4.32200118,184.74,184.68,3.13749185]
[1755566427750,4.32200118,184.73,184.68,3.13749185]
[1755566427957,7.42200118,184.72,184.68,0.03749185]
[1755566428256,4.32200118,184.71,184.68,0.03749185]
[1755566428963,3.1,184.72,184.68,0.03749185]
[1755566429259,3.1,184.75,184.68,3.13749185]
[1755566429558,4.32177608,184.74,184.68,3.13749185]
[1755566429759,4.32177608,184.73,184.69,3.1]
[1755566429960,3.1,184.75,184.69,3.1]
[1755566430160,7.42177438,184.74,184.69,3.1]
[1755566430362,4.32177438,184.73,184.69,3.1]
[1755566430559,363.7,184.76,184.69,6.88363631]
[1755566430861,139.5,184.79,184.7,8.5115]
[1755566431056,140.7207605,184.78,184.7,3.1]
[1755566431255,3.1,184.83,184.76,3.1]
[1755566431559,140.81819919,184.82,184.76,3.1]
[1755566431751,136.5,184.82,184.76,3.1]
[1755566432154,3.1,184.8,184.77,0.04112445]
[1755566432354,3.1,184.79,184.77,0.04112445]
[1755566432565,3.1,184.79,184.72,12.29453631]
[1755566432951,3.1,184.79,184.76,0.03495997]
[1755566433561,136.5,184.82,184.76,0.03495997]
[1755566435765,3.1,184.79,184.76,0.03495997]
[1755566435954,3.1,184.8,184.76,0.03495997]
[1755566436264,136.5,184.82,184.76,0.03495997]
[1755566436265,3.1,184.78,184.76,0.03495997]
[1755566437465,3.1,184.77,184.76,0.03495997]
[1755566437853,3.1,184.81,184.76,0.03495997]
[1755566438060,3.1,184.8,184.76,0.03495997]
[1755566438260,136.5,184.82,184.76,0.03495997]
[1755566438460,3.1,184.79,184.76,0.03495997]
[1755566438755,136.5,184.82,184.76,0.03495997]
[1755566441873,136.5,184.82,184.79,3.1]
[1755566442570,136.5,184.82,184.76,0.03495997]
[1755566443266,3.1,184.81,184.76,0.03495997]
[1755566444467,3.1,184.8,184.76,0.03495997]
[1755566444965,3.1,184.78,184.76,0.03495997]
[1755566445361,3.1,184.81,184.76,0.03495997]
[1755566445668,3.1,184.78,184.76,0.03495997]
[1755566445870,3.1,184.77,184.76,0.03495997]
[1755566446972,139.6,184.82,184.76,0.03495997]
[1755566447166,4.31453076,184.81,184.76,0.03495997]
[1755566447466,4.31695784,184.8,184.76,0.03495997]
[1755566447674,3.1,184.77,184.76,0.03495997]
[1755566448563,3.1,184.83,184.76,0.03495997]
[1755566448966,136.34,184.83,184.76,0.03495997]
[1755566449373,136.34,184.83,184.76,5.44455997]
[1755566450067,136.34,184.83,184.77,8.5095]
[1755566450273,136.34,184.83,184.77,3.1]
[1755566455379,2.88,184.92,184.79,3.08]
[1755566455568,2.88,184.9,184.79,3.08]
[1755566455773,2.88,184.88,184.79,3.08]
[1755566456181,2.88,184.87,184.83,0.0383278]
[1755566456384,2.88,184.86,184.83,0.0383278]
[1755566460283,2.88,184.84,184.83,0.0383278]
[1755566460687,136.32,184.89,184.83,0.0383278]
[1755566460688,2.88,184.87,184.83,0.0383278]
[1755566460990,136.32,184.89,184.83,3.1183278]
[1755566461593,0.94160939,184.92,184.86,3.77693947]
[1755566461886,499.92,184.97,184.89,3.77693947]
[1755566462093,4.30624633,184.96,184.89,3.77693947]
[1755566462386,2.88,184.96,184.91,0.03601554]
[1755566462584,4.30602233,184.95,184.91,0.03601554]
[1755566462784,2.88,184.92,184.91,0.03601554]
[1755566462980,2.88,184.92,184.8,3.77693947]
[1755566463182,136.3,184.91,184.8,3.77693947]
[1755566463388,2.88,184.9,184.8,3.77693947]
[1755566463691,2.88,184.9,184.79,3.08]
[1755566463890,2.88,184.9,184.81,3.08]
[1755566464284,0.03630489,184.86,184.75,3.08]
[1755566465184,0.03630489,184.86,184.78,3.08]
[1755566465681,2.88,184.87,184.74,3.08]
[1755566465882,2.91787883,184.84,184.74,3.08]
[1755566466694,139.19787883,184.84,184.74,3.08]
[1755566466891,139.19787883,184.84,184.71,120.76173057]
[1755566466892,2.88,184.83,184.71,120.76173057]
[1755566467785,0.04133576,184.79,184.71,120.76173057]
[1755566470588,0.04133576,184.79,184.65,4.4393011]
[1755566470794,2.88,184.78,184.67,3.08]
[1755566471393,0.03447457,184.74,184.67,3.08]
[1755566473391,0.03447457,184.74,184.67,10.64722735]
[1755566473697,499.88,184.84,184.73,3.08]
[1755566473886,502.76,184.84,184.73,3.08]
[1755566474483,502.76,184.84,184.73,8.4906]
[1755566474688,7.19799121,184.83,184.73,3.08]
[1755566474894,4.3183455,184.82,184.73,3.08]
[1755566475088,2.88,184.83,184.77,0.0380742]
[1755566475292,502.76,184.84,184.77,0.0380742]
[1755566476492,499.88,184.84,184.78,3.08]
[1755566476689,136.28,184.84,184.78,3.08]
[1755566477490,136.28,184.84,184.81,3.08]
[1755566477690,2.88,184.88,184.82,3.08]
[1755566478489,2.88,184.88,184.75,6.20016609]
[1755566478490,2.88,184.88,184.83,3.12170966]